Workbook

Sheet 办公设备
A1: 固定资产-办公设备及食堂设备评估申报表
A2: 评估基准日：2023年8月17日
A3: 资产占有人：南宁市建筑规划设计集团有限公司 | D3: 金额单位：人民币元
A4: 序号 | B4: 资产名称 | C4: 购置时间 | D4: 计量单位 | E4: 申报数量
A6: =SUBTOTAL(103,$B$6:B6)*1 -> 1 | B6: HP500绘图仪 | C6: 2003-10-06 | D6: 台 | E6: 1
A7: =SUBTOTAL(103,$B$6:B7)*1 -> 2 | B7: 22寸AOC液晶显示器 | C7: 2007/10/31 | D7: 台 | E7: 1
A8: =SUBTOTAL(103,$B$6:B8)*1 -> 3 | B8: 20寸LG液晶显示器 | C8: 2007/10/31 | D8: 台 | E8: 1
A9: =SUBTOTAL(103,$B$6:B9)*1 -> 4 | B9: 宏基X221-W22寸液晶显示器 | C9: 2007/10/31 | D9: 台 | E9: 1
A10: =SUBTOTAL(103,$B$6:B10)*1 -> 5 | B10: 宏基X221-W22寸液晶显示器 | C10: 2007/10/31 | D10: 台 | E10: 1
A11: =SUBTOTAL(103,$B$6:B11)*1 -> 6 | B11: 宏基X221-W22寸液晶显示器 | C11: 2007/10/31 | D11: 台 | E11: 1
A12: =SUBTOTAL(103,$B$6:B12)*1 -> 7 | B12: 美格WB9液晶显示器一台 | C12: 2007/12/19 | D12: 台 | E12: 1
A13: =SUBTOTAL(103,$B$6:B13)*1 -> 8 | B13: 京瓷数码复印机KM-2035 | C13: 2008-03-07 | D13: 台 | E13: 1
A14: =SUBTOTAL(103,$B$6:B14)*1 -> 9 | B14: 三星2243BW22寸液晶显示器 | C14: 2008-04-17 | D14: 台 | E14: 1
A15: =SUBTOTAL(103,$B$6:B15)*1 -> 10 | B15: 美格液晶显示器2000W | C15: 2008-04-08 | D15: 台 | E15: 1
A16: =SUBTOTAL(103,$B$6:B16)*1 -> 11 | B16: 三星2243BW液晶显示器 | C16: 2009/12/23 | D16: 台 | E16: 1
A17: =SUBTOTAL(103,$B$6:B17)*1 -> 12 | B17: 华擎P43DE主板/酷睿E2210/盈通9600GSO 1G显卡/主机 | C17: 2009/12/23 | D17: 台 | E17: 1
A18: =SUBTOTAL(103,$B$6:B18)*1 -> 13 | B18: 华擎P43ME主板/酷睿E5300/盈通9500GT 显卡/主机 | C18: 2009/12/23 | D18: 台 | E18: 1
A19: =SUBTOTAL(103,$B$6:B19)*1 -> 14 | B19: 华擎P43ME主板/酷睿E5300/盈通9500GT 显卡/主机 | C19: 2009/12/23 | D19: 台 | E19: 1
A20: =SUBTOTAL(103,$B$6:B20)*1 -> 15 | B20: 飞利浦220EW9显示器一台 | C20: 2009-02-23 | D20: 台 | E20: 1
A21: =SUBTOTAL(103,$B$6:B21)*1 -> 16 | B21: 飞利浦190EW9显示器一台 | C21: 2009-02-23 | D21: 台 | E21: 1
A22: =SUBTOTAL(103,$B$6:B22)*1 -> 17 | B22: 三星2243EW 22寸液晶显示器 | C22: 2009-05-08 | D22: 台 | E22: 1
A23: =SUBTOTAL(103,$B$6:B23)*1 -> 18 | B23: 三星2243EW 22寸液晶显示器 | C23: 2009-05-08 | D23: 台 | E23: 1
A24: =SUBTOTAL(103,$B$6:B24)*1 -> 19 | B24: 三星2243EW 22寸液晶显示器 | C24: 2009-05-08 | D24: 台 | E24: 1
A25: =SUBTOTAL(103,$B$6:B25)*1 -> 20 | B25: 三星2243EW 22寸液晶显示器 | C25: 2009-05-08 | D25: 台 | E25: 1
A26: =SUBTOTAL(103,$B$6:B26)*1 -> 21 | B26: 三星2243EW 22寸液晶显示器一台 | C26: 2009-07-29 | D26: 台 | E26: 1
A27: =SUBTOTAL(103,$B$6:B27)*1 -> 22 | B27: 三星2243EW 22寸液晶显示器一台 | C27: 2009-07-29 | D27: 台 | E27: 1
A28: =SUBTOTAL(103,$B$6:B28)*1 -> 23 | B28: 三星2243EW 22寸液晶显示器一台 | C28: 2009-07-29 | D28: 台 | E28: 1
A29: =SUBTOTAL(103,$B$6:B29)*1 -> 24 | B29: 三星2243EW 22寸液晶显示器一台 | C29: 2009-07-29 | D29: 台 | E29: 1
A30: =SUBTOTAL(103,$B$6:B30)*1 -> 25 | B30: 斯巴达克 黑潮BI-751主板/酷睿I3 530CPU/1T硬盘/主机 | C30: 2010-10-09 | D30: 台 | E30: 1
A31: =SUBTOTAL(103,$B$6:B31)*1 -> 26 | B31: 黑潮BA-500 PRO主板/AMD 955 CPU/1T硬盘/主机 | C31: 2010-10-09 | D31: 台 | E31: 1
A32: =SUBTOTAL(103,$B$6:B32)*1 -> 27 | B32: 三星B1920NW 19寸液晶显示器 | C32: 2010-10-09 | D32: 台 | E32: 1
A33: =SUBTOTAL(103,$B$6:B33)*1 -> 28 | B33: Viewsnic Va1913W 显示器一台 | C33: 2010-04-14 | D33: 台 | E33: 1
A34: =SUBTOTAL(103,$B$6:B34)*1 -> 29 | B34: 酷睿E6500CPU/映泰G41-HD主板/500G酷鱼硬盘/主机 | C34: 2010-06-02 | D34: 台 | E34: 1
A35: =SUBTOTAL(103,$B$6:B35)*1 -> 30 | B35: 三星2243BW液晶显示器 | C35: 2010-06-02 | D35: 台 | E35: 1
A36: =SUBTOTAL(103,$B$6:B36)*1 -> 31 | B36: 优派VA2232W液晶显示器一台 | C36: 2010-06-04 | D36: 台 | E36: 1
A37: =SUBTOTAL(103,$B$6:B37)*1 -> 32 | B37: AOC 2290VW液晶显示器 | C37: 2010-08-11 | D37: 台 | E37: 1
A38: =SUBTOTAL(103,$B$6:B38)*1 -> 33 | B38: AOC 2290VW液晶显示器 | C38: 2010-08-11 | D38: 台 | E38: 1
A39: =SUBTOTAL(103,$B$6:B39)*1 -> 34 | B39: AOC 2290VW液晶显示器 | C39: 2010-08-11 | D39: 台 | E39: 1
A40: =SUBTOTAL(103,$B$6:B40)*1 -> 35 | B40: AOC 2290VW液晶显示器 | C40: 2010-08-11 | D40: 台 | E40: 1
A41: =SUBTOTAL(103,$B$6:B41)*1 -> 36 | B41: AOC 2290VW液晶显示器 | C41: 2010-08-11 | D41: 台 | E41: 1
A42: =SUBTOTAL(103,$B$6:B42)*1 -> 37 | B42: 微星880GMA-E45主板/AMD X3 445CPU/希捷500G主机 | C42: 2011-01-31 | D42: 台 | E42: 1
A43: =SUBTOTAL(103,$B$6:B43)*1 -> 38 | B43: 酷睿I5 2300/华硕P8H61-MLE/金士顿4G/主机 | C43: 2011/10/17 | D43: 台 | E43: 1
A44: =SUBTOTAL(103,$B$6:B44)*1 -> 39 | B44: 酷睿I5 2300/华硕P8H61-MLE/金士顿4G/先锋刻录/主机 | C44: 2011/10/17 | D44: 台 | E44: 1
A45: =SUBTOTAL(103,$B$6:B45)*1 -> 40 | B45: 酷睿I3-2100/华硕P8H61-MLE/金士顿2G/先锋刻录/主机 | C45: 2011/10/17 | D45: 台 | E45: 1
A46: =SUBTOTAL(103,$B$6:B46)*1 -> 41 | B46: 三星20寸 S20A300B液晶显示器 | C46: 2011/10/17 | D46: 台 | E46: 1
A47: =SUBTOTAL(103,$B$6:B47)*1 -> 42 | B47: INTER I32100/技嘉H61S2PB3主板/酷鱼500G/主机 | C47: 2011/11/30 | D47: 台 | E47: 1
A48: =SUBTOTAL(103,$B$6:B48)*1 -> 43 | B48: INTER I32100/技嘉H61S2PB3主板/酷鱼500G/主机 | C48: 2011/11/30 | D48: 台 | E48: 1
A49: =SUBTOTAL(103,$B$6:B49)*1 -> 44 | B49: 技嘉G41MT-S2PT主板/酷睿E6600 CPU/西捷1T硬盘/主机 | C49: 2011/12/20 | D49: 台 | E49: 1
A50: =SUBTOTAL(103,$B$6:B50)*1 -> 45 | B50: 技嘉G41MT-S2PT主板/酷睿E6600 CPU/西捷1T硬盘/主机 | C50: 2011/12/20 | D50: 台 | E50: 1
A51: =SUBTOTAL(103,$B$6:B51)*1 -> 46 | B51: 技嘉G41MT-S2PT主板/酷睿E6600 CPU/西捷1T硬盘/主机 | C51: 2011/12/20 | D51: 台 | E51: 1
A52: =SUBTOTAL(103,$B$6:B52)*1 -> 47 | B52: 技嘉G41MT-S2PT主板/酷睿E6600 CPU/西捷1T硬盘/主机 | C52: 2011/12/20 | D52: 台 | E52: 1
A53: =SUBTOTAL(103,$B$6:B53)*1 -> 48 | B53: 技嘉G41MT-S2PT主板/酷睿E6600 CPU/西捷1T硬盘/主机 | C53: 2011/12/20 | D53: 台 | E53: 1
A54: =SUBTOTAL(103,$B$6:B54)*1 -> 49 | B54: 技嘉G41/酷睿Q8300 2.5G/4核/威刚2G DDR3/主机 | C54: 2011-03-30 | D54: 台 | E54: 1
A55: =SUBTOTAL(103,$B$6:B55)*1 -> 50 | B55: 优派VA2232W 22寸液晶显示器 | C55: 2011-04-27 | D55: 台 | E55: 1
A56: =SUBTOTAL(103,$B$6:B56)*1 -> 51 | B56: 优派VA2232W 22寸液晶显示器 | C56: 2011-04-27 | D56: 台 | E56: 1
A57: =SUBTOTAL(103,$B$6:B57)*1 -> 52 | B57: 优派VA2232W 22寸液晶显示器 | C57: 2011-04-27 | D57: 台 | E57: 1
A58: =SUBTOTAL(103,$B$6:B58)*1 -> 53 | B58: 优派VA2232W 22寸液晶显示器 | C58: 2011-04-27 | D58: 台 | E58: 1
A59: =SUBTOTAL(103,$B$6:B59)*1 -> 54 | B59: 优派VA2232W 22寸液晶显示器 | C59: 2011-04-27 | D59: 台 | E59: 1
A60: =SUBTOTAL(103,$B$6:B60)*1 -> 55 | B60: 优派VA2232W 22寸液晶显示器 | C60: 2011-04-27 | D60: 台 | E60: 1
A61: =SUBTOTAL(103,$B$6:B61)*1 -> 56 | B61: 优派VA2232W 22寸液晶显示器 | C61: 2011-04-27 | D61: 台 | E61: 1
A62: =SUBTOTAL(103,$B$6:B62)*1 -> 57 | B62: 斯巴达克黑潮BI-751/酷睿I3 530/先锋18X DVD主机 | C62: 2011-05-25 | D62: 台 | E62: 1
A63: =SUBTOTAL(103,$B$6:B63)*1 -> 58 | B63: 斯巴达克黑潮BI-751/酷睿I3 530/先锋22X DVD主机 | C63: 2011-05-25 | D63: 台 | E63: 1
A64: =SUBTOTAL(103,$B$6:B64)*1 -> 59 | B64: 捷波悍马HI06主板/酷睿I3 530/长城机箱/主机 | C64: 2011-05-25 | D64: 台 | E64: 1
A65: =SUBTOTAL(103,$B$6:B65)*1 -> 60 | B65: 三星20寸 BX2031液晶显示器 | C65: 2011-05-25 | D65: 台 | E65: 1
A66: =SUBTOTAL(103,$B$6:B66)*1 -> 61 | B66: 三星20寸 S20A300B液晶显示器 | C66: 2011-05-25 | D66: 台 | E66: 1
A67: =SUBTOTAL(103,$B$6:B67)*1 -> 62 | B67: 三星20寸 S20A300B液晶显示器 | C67: 2011-05-25 | D67: 台 | E67: 1
A68: =SUBTOTAL(103,$B$6:B68)*1 -> 63 | B68: 技嘉EP43T-S3L主板/酷睿E6500CPU/GT240重炮版/主机 | C68: 2011-05-06 | D68: 台 | E68: 1
A69: =SUBTOTAL(103,$B$6:B69)*1 -> 64 | B69: 技嘉EP43T-S3L主板/酷睿E6500CPU/GTS450 1G/主机 | C69: 2011-05-06 | D69: 台 | E69: 1
A70: =SUBTOTAL(103,$B$6:B70)*1 -> 65 | B70: 技嘉EP43T-S3L主板/酷睿E6500CPU/GTS450 1G/主机 | C70: 2011-05-06 | D70: 台 | E70: 1
A71: =SUBTOTAL(103,$B$6:B71)*1 -> 66 | B71: 技嘉EP43T-S3L主板/酷睿E6500CPU/GTS450极速版/主机 | C71: 2011-05-06 | D71: 台 | E71: 1
A72: =SUBTOTAL(103,$B$6:B72)*1 -> 67 | B72: 微星880GMA-E41主板/AMD X3 445（盒）CPU/主机 | C72: 2011-08-19 | D72: 台 | E72: 1
A73: =SUBTOTAL(103,$B$6:B73)*1 -> 68 | B73: 微星880GMA-E41主板/AMD X3 445（盒）CPU/主机 | C73: 2011-08-19 | D73: 台 | E73: 1
A74: =SUBTOTAL(103,$B$6:B74)*1 -> 69 | B74: 微星880GMA-E41主板/AMD X3 445（盒）CPU/主机 | C74: 2011-08-19 | D74: 台 | E74: 1
A75: =SUBTOTAL(103,$B$6:B75)*1 -> 70 | B75: 华硕P8H61-MLE主板/酷睿I3-2100CPU/西捷1T/主机 | C75: 2011-09-20 | D75: 台 | E75: 1
A76: =SUBTOTAL(103,$B$6:B76)*1 -> 71 | B76: 三星20寸S20A300B液晶显示器 | C76: 2011-09-20 | D76: 台 | E76: 1
A77: =SUBTOTAL(103,$B$6:B77)*1 -> 72 | B77: 三星19B360BW19寸显示器 | C77: 2012/11/21 | D77: 台 | E77: 1
A78: =SUBTOTAL(103,$B$6:B78)*1 -> 73 | B78: 华硕B75M-MLX/INTEL I3-3220原包/西数1TB/主机 | C78: 2012/12/17 | D78: 台 | E78: 1
A79: =SUBTOTAL(103,$B$6:B79)*1 -> 74 | B79: 华硕B75M-MLX/INTEL I3-3220原包/西数1TB/主机 | C79: 2012/12/17 | D79: 台 | E79: 1
A80: =SUBTOTAL(103,$B$6:B80)*1 -> 75 | B80: 三星22B150 显示器 | C80: 2012/12/17 | D80: 台 | E80: 1
A81: =SUBTOTAL(103,$B$6:B81)*1 -> 76 | B81: 华硕B75M-MLX/INTEL I3-3220原包/西数1TB/主机 | C81: 2012/12/17 | D81: 台 | E81: 1
A82: =SUBTOTAL(103,$B$6:B82)*1 -> 77 | B82: HP1606打印机一台 | C82: 2012/12/17 | D82: 台 | E82: 1
A83: =SUBTOTAL(103,$B$6:B83)*1 -> 78 | B83: 映泰主板TH61A/酷睿I5-2300/500G希捷硬盘/主机 | C83: 2012/12/18 | D83: 台 | E83: 1
A84: =SUBTOTAL(103,$B$6:B84)*1 -> 79 | B84: 技嘉B55M-HD3/INTER I3 2120/酷鱼500G/主机 | C84: 2012/12/21 | D84: 台 | E84: 1
A85: =SUBTOTAL(103,$B$6:B85)*1 -> 80 | B85: 技嘉P61-S3主板/I3 2120CPU/酷鱼500G/讯景显卡/主机 | C85: 2012-07-11 | D85: 台 | E85: 1
A86: =SUBTOTAL(103,$B$6:B86)*1 -> 81 | B86: 技嘉P75-D3主板/I5 2320CPU/希捷1TB/盈通显卡/主机 | C86: 2012-07-11 | D86: 台 | E86: 1
A87: =SUBTOTAL(103,$B$6:B87)*1 -> 82 | B87: 技嘉P75-D3主板/I5 2320CPU/希捷1TB/盈通显卡/主机 | C87: 2012-07-11 | D87: 台 | E87: 1
A88: =SUBTOTAL(103,$B$6:B88)*1 -> 83 | B88: Intel I3 2120CPU/映泰TH61A主板/酷鱼500G硬盘/主机 | C88: 2012-07-05 | D88: 台 | E88: 1
A89: =SUBTOTAL(103,$B$6:B89)*1 -> 84 | B89: 佳能IR2420L复印机 | C89: 2013/12/13 | D89: 台 | E89: 1
A90: =SUBTOTAL(103,$B$6:B90)*1 -> 85 | B90: 微星H6主板/G2030盒CPU/威刚4G/1333/主机 | C90: 2013/12/13 | D90: 台 | E90: 1
A91: =SUBTOTAL(103,$B$6:B91)*1 -> 86 | B91: 微星H6主板/G2030盒CPU/威刚4G/1333/主机 | C91: 2013/12/13 | D91: 台 | E91: 1
A92: =SUBTOTAL(103,$B$6:B92)*1 -> 87 | B92: 微星H6主板/G2030盒CPU/威刚4G/1333/主机 | C92: 2013/12/13 | D92: 台 | E92: 1
A93: =SUBTOTAL(103,$B$6:B93)*1 -> 88 | B93: 微星H6主板/G2030盒CPU/威刚4G/1333/主机 | C93: 2013/12/13 | D93: 台 | E93: 1
A94: =SUBTOTAL(103,$B$6:B94)*1 -> 89 | B94: 微星H6主板/G2030盒CPU/威刚4G/1333/主机 | C94: 2013/12/13 | D94: 台 | E94: 1
A95: =SUBTOTAL(103,$B$6:B95)*1 -> 90 | B95: 微星H6主板/G2030盒CPU/威刚4G/1333/主机 | C95: 2013/12/13 | D95: 台 | E95: 1
A96: =SUBTOTAL(103,$B$6:B96)*1 -> 91 | B96: 优派23寸IPS液晶显示器 | C96: 2013/12/13 | D96: 台 | E96: 1
A97: =SUBTOTAL(103,$B$6:B97)*1 -> 92 | B97: 优派23寸IPS液晶显示器 | C97: 2013/12/13 | D97: 台 | E97: 1
A98: =SUBTOTAL(103,$B$6:B98)*1 -> 93 | B98: 优派23寸IPS液晶显示器 | C98: 2013/12/13 | D98: 台 | E98: 1
A99: =SUBTOTAL(103,$B$6:B99)*1 -> 94 | B99: 优派23寸IPS液晶显示器 | C99: 2013/12/13 | D99: 台 | E99: 1
A100: =SUBTOTAL(103,$B$6:B100)*1 -> 95 | B100: 优派23寸IPS液晶显示器 | C100: 2013/12/13 | D100: 台 | E100: 1
A101: =SUBTOTAL(103,$B$6:B101)*1 -> 96 | B101: 优派23寸IPS液晶显示器 | C101: 2013/12/13 | D101: 台 | E101: 1
A102: =SUBTOTAL(103,$B$6:B102)*1 -> 97 | B102: Intel I3 3220/威刚4G/500G/华硕B75M-A/主机 | C102: 2013-12-04 | D102: 台 | E102: 1
A103: =SUBTOTAL(103,$B$6:B103)*1 -> 98 | B103: Intel I3 3220/威刚4G/500G/华硕B75M-A/主机 | C103: 2013-12-04 | D103: 台 | E103: 1
A104: =SUBTOTAL(103,$B$6:B104)*1 -> 99 | B104: Intel I3 3220/威刚4G/500G/华硕B75M-A/主机 | C104: 2013-12-04 | D104: 台 | E104: 1
A105: =SUBTOTAL(103,$B$6:B105)*1 -> 100 | B105: 三星S22B150N液晶显示器 | C105: 2013-04-28 | D105: 台 | E105: 1
A106: =SUBTOTAL(103,$B$6:B106)*1 -> 101 | B106: 三星S22B150N液晶显示器 | C106: 2013-04-28 | D106: 台 | E106: 1
A107: =SUBTOTAL(103,$B$6:B107)*1 -> 102 | B107: HP790B0绘图仪一台 | C107: 2013-04-08 | D107: 台 | E107: 1
A108: =SUBTOTAL(103,$B$6:B108)*1 -> 103 | B108: 华硕P8B75-M主板/酷睿I5-3470CPU/西数1T硬盘/主机 | C108: 2013-05-27 | D108: 台 | E108: 1
A109: =SUBTOTAL(103,$B$6:B109)*1 -> 104 | B109: INTEL原装CPU/I3-3220/华硕P8B75-M LX3主板/主机 | C109: 2013-05-27 | D109: 台 | E109: 1
A110: =SUBTOTAL(103,$B$6:B110)*1 -> 105 | B110: 映泰H77MU3主板/酷睿I3-3220 CPU/西数1T/主机 | C110: 2013-06-04 | D110: 台 | E110: 1
A111: =SUBTOTAL(103,$B$6:B111)*1 -> 106 | B111: I3 3220/技嘉H61-M-DS2/西数1T/威刚2G/DDR1333主机 | C111: 2013-07-01 | D111: 台 | E111: 1
A112: =SUBTOTAL(103,$B$6:B112)*1 -> 107 | B112: I3 3220/技嘉H61-M-DS2/西数1T/威刚2G/DDR1333主机 | C112: 2013-07-01 | D112: 台 | E112: 1
A113: =SUBTOTAL(103,$B$6:B113)*1 -> 108 | B113: I3 3220/技嘉H61-M-DS2/西数1T/威刚2G/DDR1333主机 | C113: 2013-07-01 | D113: 台 | E113: 1
A114: =SUBTOTAL(103,$B$6:B114)*1 -> 109 | B114: 映泰B75MU3主板/奔腾G2020CPU/希捷1T/威刚4G/主机 | C114: 2013-07-15 | D114: 台 | E114: 1
A115: =SUBTOTAL(103,$B$6:B115)*1 -> 110 | B115: AMD A8-5800K CPU/华硕F2A85-M LE主板/威刚4G/主机 | C115: 2013-07-26 | D115: 台 | E115: 1
A116: =SUBTOTAL(103,$B$6:B116)*1 -> 111 | B116: 佳能IX6580打印机一台 | C116: 2013-07-31 | D116: 台 | E116: 1
A117: =SUBTOTAL(103,$B$6:B117)*1 -> 112 | B117: INTEL湾I3 3220/华硕B75M-A/威刚4G/主机 | C117: 2013-09-24 | D117: 台 | E117: 1
A118: =SUBTOTAL(103,$B$6:B118)*1 -> 113 | B118: INTEL I3 3220/威刚4G/500G/华硕B75M-A/主机 | C118: 2013-09-24 | D118: 台 | E118: 1
A119: =SUBTOTAL(103,$B$6:B119)*1 -> 114 | B119: 奔腾G2020/映泰B75MU3主板/希捷1T/威刚4G/主机 | C119: 2013-09-25 | D119: 台 | E119: 1
A120: =SUBTOTAL(103,$B$6:B120)*1 -> 115 | B120: 奔腾G2020/映泰B75MU3主板/希捷1T/威刚4G/主机 | C120: 2013-09-25 | D120: 台 | E120: 1
A121: =SUBTOTAL(103,$B$6:B121)*1 -> 116 | B121: 奔腾G2020/映泰B75MU3主板/希捷1T/威刚4G/主机 | C121: 2013-09-25 | D121: 台 | E121: 1
A122: =SUBTOTAL(103,$B$6:B122)*1 -> 117 | B122: 奔腾G2020/映泰B75MU3主板/希捷1T/威刚4G/主机 | C122: 2013-09-25 | D122: 台 | E122: 1
A123: =SUBTOTAL(103,$B$6:B123)*1 -> 118 | B123: 佳能IR2521I复印机 | C123: 2014-11-03 | D123: 台 | E123: 1
A124: =SUBTOTAL(103,$B$6:B124)*1 -> 119 | B124: 京瓷数码复印机FS-6525MFP/一台 | C124: 2014-09-28 | D124: 台 | E124: 1
A125: =SUBTOTAL(103,$B$6:B125)*1 -> 120 | B125: Intel G1840/技嘉H81M-DS2/威刚4G/主机 | C125: 2015/11/13 | D125: 台 | E125: 1
A126: =SUBTOTAL(103,$B$6:B126)*1 -> 121 | B126: Intel G1840/技嘉H81M-DS2/威刚4G/主机 | C126: 2015/11/13 | D126: 台 | E126: 1
A127: =SUBTOTAL(103,$B$6:B127)*1 -> 122 | B127: 爱普生CB-X29投影机 | C127: 2015/12/14 | D127: 台 | E127: 1
A128: =SUBTOTAL(103,$B$6:B128)*1 -> 123 | B128: 华硕主板B85/I5 4590CPU/1000G硬盘/威刚4G/主机 | C128: 2015-04-24 | D128: 台 | E128: 1
A129: =SUBTOTAL(103,$B$6:B129)*1 -> 124 | B129: 微星H61主板/INTEL P-G2030（盒）/威刚4G/主机 | C129: 2015-04-28 | D129: 台 | E129: 1
A130: =SUBTOTAL(103,$B$6:B130)*1 -> 125 | B130: 微星H61主板/INTEL P-G2030（盒）/威刚4G/主机 | C130: 2015-04-28 | D130: 台 | E130: 1
A131: =SUBTOTAL(103,$B$6:B131)*1 -> 126 | B131: 优派23寸IPS液晶显示器 | C131: 2015-04-28 | D131: 台 | E131: 1
A132: =SUBTOTAL(103,$B$6:B132)*1 -> 127 | B132: 优派23寸IPS液晶显示器 | C132: 2015-04-28 | D132: 台 | E132: 1
A133: =SUBTOTAL(103,$B$6:B133)*1 -> 128 | B133: 华硕B85/I5 4590 CPU/1000G硬盘/威刚8G 1600/主机 | C133: 2015-08-03 | D133: 台 | E133: 1
A134: =SUBTOTAL(103,$B$6:B134)*1 -> 129 | B134: 电脑主机（INTEL xeon e3-1231 v3CPU/华硕Z97主板） | C134: 2016/11/29 | D134: 台 | E134: 1
A135: =SUBTOTAL(103,$B$6:B135)*1 -> 130 | B135: 电脑主机（INTEL i7-6700/华硕B150 D3主板） | C135: 2016-12-05 | D135: 台 | E135: 1
A136: =SUBTOTAL(103,$B$6:B136)*1 -> 131 | B136: 电脑主机（INTEL i7-6700/华硕B150 D3主板） | C136: 2016-12-05 | D136: 台 | E136: 1
A137: =SUBTOTAL(103,$B$6:B137)*1 -> 132 | B137: 优派23寸IPS液晶显示器 | C137: 2016-04-07 | D137: 台 | E137: 1
A138: =SUBTOTAL(103,$B$6:B138)*1 -> 133 | B138: 微星H81主板、INTEL P-G3260主板、西数硬盘/主机 | C138: 2016-04-07 | D138: 台 | E138: 1
A139: =SUBTOTAL(103,$B$6:B139)*1 -> 134 | B139: 微星960/4G显卡、INTELXeone3-1231v3 CPU/主机 | C139: 2016-05-26 | D139: 台 | E139: 1
A140: =SUBTOTAL(103,$B$6:B140)*1 -> 135 | B140: 电脑显示器 | C140: 2017-04-17 | D140: 台 | E140: 1
A141: =SUBTOTAL(103,$B$6:B141)*1 -> 136 | B141: 电脑显示器 | C141: 2017-04-17 | D141: 台 | E141: 1
A142: =SUBTOTAL(103,$B$6:B142)*1 -> 137 | B142: 主机 | C142: 2017-06-18 | D142: 台 | E142: 1
A143: =SUBTOTAL(103,$B$6:B143)*1 -> 138 | B143: 黑白激光打印机富士施乐DP-525A | C143: 2007/11/30 | D143: 台 | E143: 1
A144: =SUBTOTAL(103,$B$6:B144)*1 -> 139 | B144: 联想笔记本电脑SONY VGNSZ57CN | C144: 2007/11/30 | D144: 台 | E144: 1
A145: =SUBTOTAL(103,$B$6:B145)*1 -> 140 | B145: 笔记本电脑SONY VGN-CS17 | C145: 2008/12/31 | D145: 台 | E145: 1
A146: =SUBTOTAL(103,$B$6:B146)*1 -> 141 | B146: 笔记本电脑SONY VGN-SR56 | C146: 2008/12/31 | D146: 台 | E146: 1
A147: =SUBTOTAL(103,$B$6:B147)*1 -> 142 | B147: 黑白激光打印机HP 5200LX | C147: 2009-01-31 | D147: 台 | E147: 1
A148: =SUBTOTAL(103,$B$6:B148)*1 -> 143 | B148: A3彩色激光打印机HP 5550 | C148: 2009-04-30 | D148: 台 | E148: 3
A149: =SUBTOTAL(103,$B$6:B149)*1 -> 144 | B149: A4黑白激光打印机HP 1505N | C149: 2009-04-30 | D149: 台 | E149: 1
A150: =SUBTOTAL(103,$B$6:B150)*1 -> 145 | B150: 彩色激光打印机Hp cp1215 | C150: 2009-04-30 | D150: 台 | E150: 1
A151: =SUBTOTAL(103,$B$6:B151)*1 -> 146 | B151: 彩色激光打印机Xerox c1110 | C151: 2009-08-31 | D151: 台 | E151: 1
A152: =SUBTOTAL(103,$B$6:B152)*1 -> 147 | B152: 黑白激光打印机xerox 3124 | C152: 2009-08-31 | D152: 台 | E152: 1
A153: =SUBTOTAL(103,$B$6:B153)*1 -> 148 | B153: 针式打印机Epson LQ-1600kⅢ | C153: 2009-08-31 | D153: 台 | E153: 1
A154: =SUBTOTAL(103,$B$6:B154)*1 -> 149 | B154: A4黑白激光打印机xerox 3125 | C154: 2010-05-31 | D154: 台 | E154: 2
A155: =SUBTOTAL(103,$B$6:B155)*1 -> 150 | B155: A3黑白激光打印机HP 5200LX | C155: 2010-05-31 | D155: 台 | E155: 3
A156: =SUBTOTAL(103,$B$6:B156)*1 -> 151 | B156: 数码复印机Sharp mx-m620N | C156: 2010-06-30 | D156: 台 | E156: 1
A157: =SUBTOTAL(103,$B$6:B157)*1 -> 152 | B157: A3黑白激光打印机富士施乐2065 | C157: 2011-08-31 | D157: 台 | E157: 1
A158: =SUBTOTAL(103,$B$6:B158)*1 -> 153 | B158: 碎纸机科密C-A3100 | C158: 2011-08-31 | D158: 台 | E158: 1
A159: =SUBTOTAL(103,$B$6:B159)*1 -> 154 | B159: A3黑白激光打印机富士施乐2065 | C159: 2012-04-30 | D159: 台 | E159: 1
A160: =SUBTOTAL(103,$B$6:B160)*1 -> 155 | B160: 扫描仪佳能9000F Mark II | C160: 2014-06-30 | D160: 台 | E160: 1
A161: =SUBTOTAL(103,$B$6:B161)*1 -> 156 | B161: 打印机(HPM701N)惠普M701N | C161: 2015-05-31 | D161: 台 | E161: 4
A162: =SUBTOTAL(103,$B$6:B162)*1 -> 157 | B162: 扫描仪中晶Phantom v500 | C162: 2015-05-31 | D162: 台 | E162: 1
A163: =SUBTOTAL(103,$B$6:B163)*1 -> 158 | B163: 复印机理光MP5054SP | C163: 2015-08-31 | D163: 台 | E163: 1
A164: =SUBTOTAL(103,$B$6:B164)*1 -> 159 | B164: A3黑白激光打印机惠普M712DN | C164: 2016-05-31 | D164: 台 | E164: 2
A165: =SUBTOTAL(103,$B$6:B165)*1 -> 160 | B165: A3碎纸机科密C-A3100 | C165: 2016-05-31 | D165: 台 | E165: 1
A166: =SUBTOTAL(103,$B$6:B166)*1 -> 161 | B166: 碎纸机科密E306CA | C166: 2017-08-31 | D166: 台 | E166: 1
A167: =SUBTOTAL(103,$B$6:B167)*1 -> 162 | B167: 办公家具一批 | C167: 2007-01-24 | D167: 批 | E167: 1
A168: =SUBTOTAL(103,$B$6:B168)*1 -> 163 | B168: 中班台一张、职员椅一张 | C168: 2010-07-24 | D168: 批 | E168: 1
A169: =SUBTOTAL(103,$B$6:B169)*1 -> 164 | B169: 山特UPS,Ablovet电池 | C169: 2004-03-28 | D169: 台 | E169: 1
A170: =SUBTOTAL(103,$B$6:B170)*1 -> 165 | B170: DELL服务器 | C170: 2004-03-29 | D170: 台 | E170: 1
A171: =SUBTOTAL(103,$B$6:B171)*1 -> 166 | B171: IBM笔记本电脑 | C171: 2004-04-30 | D171: 台 | E171: 1
A172: =SUBTOTAL(103,$B$6:B172)*1 -> 167 | B172: IBM笔记本电脑 | C172: 2004-04-30 | D172: 台 | E172: 1
A173: =SUBTOTAL(103,$B$6:B173)*1 -> 168 | B173: 微星865PE/P4 2.8G/80G/三星17"显/电脑 | C173: 200405/14 | D173: 台 | E173: 1
A174: =SUBTOTAL(103,$B$6:B174)*1 -> 169 | B174: 扫描仪 | C174: 2004/12/28 | D174: 台 | E174: 1
A175: =SUBTOTAL(103,$B$6:B175)*1 -> 170 | B175: 办公桌,隔断一批 | C175: 2003-05-29 | D175: 批 | E175: 1
A176: =SUBTOTAL(103,$B$6:B176)*1 -> 171 | B176: 办公屏风配套 | C176: 2003-08-06 | D176: 批 | E176: 1
A177: =SUBTOTAL(103,$B$6:B177)*1 -> 172 | B177: DELL PE2850服务器 | C177: 2005-08-25 | D177: 台 | E177: 1
A178: =SUBTOTAL(103,$B$6:B178)*1 -> 173 | B178: DELL 15'液晶显示器 | C178: 2005-09-15 | D178: 台 | E178: 1
A179: =SUBTOTAL(103,$B$6:B179)*1 -> 174 | B179: 微星K8N GM2-L/AMDK8 3200-939/160G电脑主机 | C179: 2006-08-22 | D179: 台 | E179: 1
A180: =SUBTOTAL(103,$B$6:B180)*1 -> 175 | B180: 办公家具一批 | C180: 2007-04-17 | D180: 批 | E180: 1
A181: =SUBTOTAL(103,$B$6:B181)*1 -> 176 | B181: 办公家具卡位等一批 | C181: 2007-05-29 | D181: 批 | E181: 1
A182: =SUBTOTAL(103,$B$6:B182)*1 -> 177 | B182: 办公家具一批 | C182: 2007-05-29 | D182: 批 | E182: 1
A183: =SUBTOTAL(103,$B$6:B183)*1 -> 178 | B183: 办公家具一批 | C183: 2007-05-30 | D183: 批 | E183: 1
A184: =SUBTOTAL(103,$B$6:B184)*1 -> 179 | B184: 优派VA712B 17寸液晶显示器 | C184: 2007-09-06 | D184: 台 | E184: 1
A185: =SUBTOTAL(103,$B$6:B185)*1 -> 180 | B185: 优派VA712B 17寸液晶显示器 | C185: 2007-09-06 | D185: 台 | E185: 1
A186: =SUBTOTAL(103,$B$6:B186)*1 -> 181 | B186: 优派VA712B 17寸液晶显示器 | C186: 2007-09-06 | D186: 台 | E186: 1
A187: =SUBTOTAL(103,$B$6:B187)*1 -> 182 | B187: 优派VA712B 17寸液晶显示器 | C187: 2007-09-06 | D187: 台 | E187: 1
A188: =SUBTOTAL(103,$B$6:B188)*1 -> 183 | B188: 优派VA712B 17寸液晶显示器 | C188: 2007-09-06 | D188: 台 | E188: 1
A189: =SUBTOTAL(103,$B$6:B189)*1 -> 184 | B189: 优派VA712B 17寸液晶显示器 | C189: 2007-09-06 | D189: 台 | E189: 1
A190: =SUBTOTAL(103,$B$6:B190)*1 -> 185 | B190: 优派VA712B 17寸液晶显示器 | C190: 2007-09-06 | D190: 台 | E190: 1
A191: =SUBTOTAL(103,$B$6:B191)*1 -> 186 | B191: 优派VA712B 17寸液晶显示器 | C191: 2007-09-06 | D191: 台 | E191: 1
A192: =SUBTOTAL(103,$B$6:B192)*1 -> 187 | B192: 华硕I945GZ/PD915/威刚1G/160G酷鱼/主机 | C192: 2007-09-06 | D192: 台 | E192: 1
A193: =SUBTOTAL(103,$B$6:B193)*1 -> 188 | B193: 华硕I945GZ/PD915/威刚1G/先锋16X DVD/主机 | C193: 2007-09-06 | D193: 台 | E193: 1
A194: =SUBTOTAL(103,$B$6:B194)*1 -> 189 | B194: 三星931BW19寸液晶显示器 | C194: 2007/10/11 | D194: 台 | E194: 1
A195: =SUBTOTAL(103,$B$6:B195)*1 -> 190 | B195: 三星940BW19寸液晶显示器一台 | C195: 2007/10/18 | D195: 台 | E195: 1
A196: =SUBTOTAL(103,$B$6:B196)*1 -> 191 | B196: 优派VG2030WM 20寸液晶显示器 | C196: 2007/12/11 | D196: 台 | E196: 1
A197: =SUBTOTAL(103,$B$6:B197)*1 -> 192 | B197: 戴尔TM490电脑一台 | C197: 2007/12/19 | D197: 台 | E197: 1
A198: =SUBTOTAL(103,$B$6:B198)*1 -> 193 | B198: 华硕M2N-VX-DVI/AMD4800+/160G/LG20寸液晶显电脑 | C198: 2008-01-28 | D198: 台 | E198: 1
A199: =SUBTOTAL(103,$B$6:B199)*1 -> 194 | B199: 三星2243BW22寸液晶显示器 | C199: 2008-04-17 | D199: 台 | E199: 1
A200: =SUBTOTAL(103,$B$6:B200)*1 -> 195 | B200: 三星2243BW22寸液晶显示器 | C200: 2008-04-17 | D200: 台 | E200: 1
A201: =SUBTOTAL(103,$B$6:B201)*1 -> 196 | B201: 三星2243BW22寸液晶显示器 | C201: 2008-04-17 | D201: 台 | E201: 1
... 78 more rows
